fUSD/lending_fUSD_20250611
["ID","MTS","AMOUNT","RATE_DAILY","PERIOD"]
[365454076,1749679856687,-357.57,0.00019506,2]
[365454077,1749679856697,-490.0,0.00019506,2]
[365454078,1749679856706,-490.0,0.00019506,2]
[365454079,1749679856716,-701.54,0.00019506,2]
[365454080,1749679856726,-490.0,0.00019506,2]
[365454081,1749679856735,-490.0,0.00019506,2]
[365454082,1749679856745,-490.0,0.00019506,2]
[365454083,1749679856755,-502.03,0.00019506,2]
[365454084,1749679856765,-490.0,0.00019506,2]
[365454085,1749679856775,-490.0,0.00019506,2]
[365454086,1749679856785,-490.0,0.00019506,2]
[365454087,1749679856794,-490.0,0.00019506,2]
[365454088,1749679856804,-490.0,0.00019506,2]
[365454089,1749679856813,-521.37468774,0.00019506,2]
[365454090,1749679856823,-490.0,0.00019506,2]
[365454091,1749679856833,-490.0,0.00019506,2]
[365454092,1749679856843,-490.0,0.00019506,2]
[365454093,1749679856853,-490.0,0.00019506,2]
[365454094,1749679856863,-490.0,0.00019506,2]
[365454095,1749679856873,-490.0,0.00019506,2]
[365454096,1749679856884,-480.0,0.00019506,2]
[365454097,1749679856899,-490.0,0.00019506,2]
[365454098,1749679856912,-490.0,0.00019506,2]
[365454099,1749679856923,-733.83,0.00019506,2]
[365454100,1749679856935,-490.0,0.00019506,2]
[365454101,1749679856945,-490.0,0.00019506,2]
[365454102,1749679856955,-745.12,0.00019506,2]
[365454103,1749679856966,-643.13,0.00019506,2]
[365454104,1749679856976,-490.0,0.00019506,2]
[365454105,1749679856986,-490.0,0.00019506,2]
[365454106,1749679856995,-490.0,0.00019506,2]
[365454107,1749679857005,-490.0,0.00019506,2]
[365454108,1749679857015,-490.0,0.00019506,2]
[365454109,1749679857025,-490.0,0.00019506,2]
[365454110,1749679857035,-490.0,0.00019506,2]
[365454111,1749679857046,-490.0,0.00019506,2]
[365454112,1749679857057,-1000.0,0.00019506,2]
[365454113,1749679857067,-490.0,0.00019506,2]
[365454114,1749679857077,-410.0,0.00019506,2]
[365454115,1749679857087,-679.97,0.00019506,2]
[365454116,1749679857097,-551.23,0.00019506,2]
[365454117,1749679857106,-490.0,0.00019506,2]
[365454118,1749679857116,-490.0,0.00019506,2]
[365454119,1749679857127,-490.0,0.00019506,2]
[365454120,1749679857138,-490.0,0.00019506,2]
[365454121,1749679857148,-194.59811439,0.00019506,2]
[365454122,1749679857158,-617.53,0.00019506,2]
[365454123,1749679857167,-780.26,0.00019506,2]
[365454124,1749679857180,-903.06304786,0.00019506,2]
[365454125,1749679857190,-490.0,0.00019506,2]
[365454126,1749679857200,-482.56,0.00019506,2]
[365454127,1749679857211,-490.0,0.00019506,2]
[365454128,1749679857221,-490.0,0.00019506,2]
[365454129,1749679857230,-366.89432785,0.00019506,2]
[365454130,1749679857240,-490.0,0.00019506,2]
[365454131,1749679857250,-490.0,0.00019506,2]
[365454132,1749679857259,-410.0,0.00019506,2]
[365454133,1749679857269,-732.22,0.00019506,2]
[365454134,1749679857279,-430.0,0.00019506,2]
[365454135,1749679857289,-623.39,0.00019506,2]
[365454136,1749679857298,-613.56,0.00019506,2]
[365454137,1749679857308,-490.0,0.00019506,2]
[365454138,1749679857318,-579.5,0.00019506,2]
[365454139,1749679857328,-490.0,0.00019506,2]
[365454140,1749679857338,-490.0,0.00019506,2]
[365454141,1749679857347,-490.0,0.00019506,2]
[365454142,1749679857358,-490.0,0.00019506,2]
[365454143,1749679857368,-565.72,0.00019506,2]
[365454144,1749679857378,-490.0,0.00019506,2]
[365454145,1749679857387,-490.0,0.00019506,2]
[365454146,1749679857397,-611.02,0.00019506,2]
[365454147,1749679857407,-490.0,0.00019506,2]
[365454148,1749679857417,-490.0,0.00019506,2]
[365454149,1749679857430,-652.09,0.00019506,2]
[365454150,1749679857440,-490.0,0.00019506,2]
[365454151,1749679857450,-222.45038007,0.00019506,2]
[365454152,1749679857459,-490.0,0.00019506,2]
[365454153,1749679857469,-490.0,0.00019506,2]
[365454154,1749679857479,-490.0,0.00019506,2]
[365454155,1749679857489,-3531.7,0.00019506,2]
[365454156,1749679857499,-490.0,0.00019506,2]
[365454157,1749679857509,-552.82,0.00019506,2]
[365454158,1749679857519,-490.0,0.00019506,2]
[365454159,1749679857530,-490.0,0.00019506,2]
[365454160,1749679857539,-490.0,0.00019506,2]
[365454161,1749679857551,-490.0,0.00019506,2]
[365454162,1749679857560,-9261.7,0.00019506,2]
[365454163,1749679857570,-490.0,0.00019506,2]
[365454164,1749679857581,-490.0,0.00019506,2]
[365454165,1749679857590,-490.0,0.00019506,2]
[365454166,1749679857600,-1079.03,0.00019506,2]
[365454167,1749679857609,-490.0,0.00019506,2]
[365454168,1749679857619,-979.82,0.00019506,2]
[365454169,1749679857629,-1536.12,0.00019506,2]
[365454170,1749679857638,-1000.0,0.00019506,2]
[365454171,1749679857648,-693.35,0.00019506,2]
[365454172,1749679857657,-490.0,0.00019506,2]
[365454173,1749679857667,-1066.08,0.00019506,2]
[365454174,1749679857678,-460.0,0.00019506,2]
[365454175,1749679857688,-490.0,0.00019506,2]
[365454176,1749679857698,-490.0,0.00019506,2]
[365454177,1749679857707,-711.41,0.00019506,2]
[365454178,1749679857717,-694.36,0.00019506,2]
[365454179,1749679857727,-490.0,0.00019506,2]
[365454180,1749679857738,-773.18,0.00019506,2]
[365454181,1749679857748,-748.22,0.00019506,2]
[365454182,1749679857758,-490.0,0.00019506,2]
[365454183,1749679857768,-490.0,0.00019506,2]
[365454184,1749679857982,-490.0,0.00019506,2]
[365454185,1749679857992,-1168.40773,0.00019506,2]
[365454186,1749679858002,-490.0,0.00019506,2]
[365454187,1749679858012,-490.0,0.00019506,2]
[365454188,1749679858022,-443.88079858,0.00019506,2]
[365454189,1749679858031,-490.0,0.00019506,2]
[365454190,1749679858041,-490.0,0.00019506,2]
[365454191,1749679858050,-490.0,0.00019506,2]
[365454192,1749679858059,-519.88,0.00019506,2]
[365454193,1749679858069,-490.0,0.00019506,2]
[365454194,1749679858078,-1339.12,0.00019506,2]
[365454195,1749679858087,-703.43,0.00019506,2]
[365454196,1749679858096,-490.0,0.00019506,2]
[365454197,1749679858105,-490.0,0.00019506,2]
[365454198,1749679858114,-490.0,0.00019506,2]
[365454199,1749679858123,-1142.31,0.00019506,2]
[365454200,1749679858133,-490.0,0.00019506,2]
[365454201,1749679858142,-977.9,0.00019506,2]
[365454202,1749679858151,-490.0,0.00019506,2]
[365454203,1749679858160,-490.0,0.00019506,2]
[365454204,1749679858171,-727.46,0.00019506,2]
[365454205,1749679858180,-903.38,0.00019506,2]
[365454206,1749679858189,-936.21,0.00019506,2]
[365454207,1749679858199,-490.0,0.00019506,2]
[365454208,1749679858208,-490.0,0.00019506,2]
[365454209,1749679858217,-847.09,0.00019506,2]
[365454210,1749679858227,-6463.05,0.00019506,2]
[365454211,1749679858236,-490.0,0.00019506,2]
[365454212,1749679858245,-1332.55,0.00019506,2]
[365454213,1749679858254,-5664.59,0.00019506,2]
[365454214,1749679858263,-536.41,0.00019506,2]
[365454215,1749679858272,-490.0,0.00019506,2]
[365454216,1749679858282,-1282.56,0.00019506,2]
[365454217,1749679858291,-490.0,0.00019506,2]
[365454218,1749679858300,-490.0,0.00019506,2]
[365454219,1749679858309,-490.0,0.00019506,2]
[365454220,1749679858318,-3202.29,0.00019506,2]
[365454221,1749679858327,-490.0,0.00019506,2]
[365454222,1749679858337,-656.69,0.00019506,2]
[365454223,1749679858346,-490.0,0.00019506,2]
[365454224,1749679858355,-490.0,0.00019506,2]
[365454225,1749679858364,-2037.92,0.00019506,2]
[365454226,1749679858373,-490.0,0.00019506,2]
[365454227,1749679858383,-490.0,0.00019506,2]
[365454228,1749679858394,-490.0,0.00019506,2]
[365454229,1749679858403,-490.0,0.00019506,2]
[365454230,1749679858412,-490.0,0.00019506,2]
[365454231,1749679858422,-1036.65,0.00019506,2]
[365454232,1749679858431,-2825.61,0.00019506,2]
[365454233,1749679858440,-490.0,0.00019506,2]
[365454234,1749679858449,-490.0,0.00019506,2]
[365454235,1749679858458,-490.0,0.00019506,2]
[365454236,1749679858467,-367.19180463,0.00019506,2]
[365454237,1749679858476,-490.0,0.00019506,2]
[365454238,1749679858485,-490.0,0.00019506,2]
[365454239,1749679858494,-490.0,0.00019506,2]
[365454240,1749679858503,-490.0,0.00019506,2]
[365454241,1749679858512,-490.0,0.00019506,2]
[365454242,1749679858522,-490.0,0.00019506,2]
[365454243,1749679858531,-376.04,0.00019506,2]
[365454244,1749679858540,-490.0,0.00019506,2]
[365454245,1749679858549,-490.0,0.00019506,2]
[365454246,1749679858558,-1480.07,0.00019506,2]
[365454247,1749679858567,-1085.55,0.00019506,2]
[365454248,1749679858577,-490.0,0.00019506,2]
[365454249,1749679858586,-3703.53,0.00019506,2]
[365454250,1749679858596,-1400.93,0.00019506,2]
[365454251,1749679858605,-280.4,0.00019506,2]
[365454252,1749679858614,-490.0,0.00019506,2]
[365454253,1749679858623,-490.0,0.00019506,2]
[365454254,1749679858633,-1152.7,0.00019506,2]
[365454255,1749679858642,-834.61,0.00019506,2]
[365454256,1749679858651,-490.0,0.00019506,2]
[365454257,1749679858660,-497.07,0.00019506,2]
[365454258,1749679858669,-1032.15,0.00019506,2]
[365454259,1749679858679,-490.0,0.00019506,2]
[365454260,1749679858688,-490.0,0.00019506,2]
[365454261,1749679858697,-490.0,0.00019506,2]
[365454262,1749679858706,-490.0,0.00019506,2]
[365454263,1749679858715,-2089.98,0.00019506,2]
[365454264,1749679858724,-490.0,0.00019506,2]
[365454265,1749679858737,-972.67,0.00019506,2]
[365454266,1749679858751,-490.0,0.00019506,2]
[365454267,1749679858760,-490.0,0.00019506,2]
[365454268,1749679858769,-1442.32,0.00019506,2]
[365454269,1749679858780,-490.0,0.00019506,2]
[365454270,1749679858790,-490.0,0.00019506,2]
[365454271,1749679858800,-490.0,0.00019506,2]
[365454272,1749679858809,-490.0,0.00019506,2]
[365454273,1749679858818,-490.0,0.00019506,2]
[365454274,1749679858827,-490.0,0.00019506,2]
[365454275,1749679858836,-671.28,0.00019506,2]
[365454276,1749679858846,-490.0,0.00019506,2]
[365454277,1749679858856,-490.0,0.00019506,2]
[365454278,1749679858865,-825.9,0.00019506,2]
[365454279,1749679858874,-490.0,0.00019506,2]
[365454280,1749679858884,-490.0,0.00019506,2]
[365454281,1749679858897,-490.0,0.00019506,2]
[365454282,1749679858906,-490.0,0.00019506,2]
[365454283,1749679858915,-490.0,0.00019506,2]
[365454284,1749679858926,-490.0,0.00019506,2]
[365454285,1749679858935,-490.0,0.00019506,2]
[365454286,1749679858945,-834.84,0.00019506,2]
[365454287,1749679858954,-497.36,0.00019506,2]
[365454288,1749679858964,-8003.1,0.00019506,2]
[365454289,1749679858975,-936.66,0.00019506,2]
[365454290,1749679858985,-490.0,0.00019506,2]
[365454291,1749679858994,-1383.82,0.00019506,2]
[365454292,1749679859004,-490.0,0.00019506,2]
[365454293,1749679859013,-490.0,0.00019506,2]
[365454294,1749679859022,-490.0,0.00019506,2]
[365454295,1749679859031,-490.0,0.00019506,2]
[365454296,1749679859041,-1029.44,0.00019506,2]
[365454297,1749679859050,-490.0,0.00019506,2]
[365454298,1749679859060,-490.0,0.00019506,2]
[365454299,1749679859070,-490.0,0.00019506,2]
[365454300,1749679859079,-490.0,0.00019506,2]
[365454301,1749679859088,-490.0,0.00019506,2]
[365454302,1749679859097,-490.0,0.00019506,2]
[365454303,1749679859106,-490.0,0.00019506,2]
[365454304,1749679859115,-1407.12,0.00019506,2]
[365454305,1749679859124,-490.0,0.00019506,2]
[365454306,1749679859134,-490.0,0.00019506,2]
[365454307,1749679859143,-490.0,0.00019506,2]
[365454308,1749679859152,-490.0,0.00019506,2]
[365454309,1749679859161,-868.69,0.00019506,2]
[365454310,1749679859171,-490.0,0.00019506,2]
[365454311,1749679859180,-490.0,0.00019506,2]
[365454312,1749679859190,-1348.39,0.00019506,2]
[365454313,1749679859200,-490.0,0.00019506,2]
[365454314,1749679859209,-1755.13,0.00019506,2]
[365454315,1749679859219,-490.0,0.00019506,2]
[365454316,1749679859228,-490.0,0.00019506,2]
[365454317,1749679859238,-460.0,0.00019506,2]
[365454318,1749679859247,-490.0,0.00019506,2]
[365454319,1749679859257,-490.0,0.00019506,2]
[365454320,1749679859266,-490.0,0.00019506,2]
[365454321,1749679859276,-504.1,0.00019506,2]
[365454322,1749679859285,-490.0,0.00019506,2]
[365454323,1749679859295,-1066.0,0.00019506,2]
[365454324,1749679859304,-490.0,0.00019506,2]
[365454325,1749679859314,-490.0,0.00019506,2]
[365454326,1749679859323,-490.0,0.00019506,2]
[365454327,1749679859332,-490.0,0.00019506,2]
[365454328,1749679859342,-838.3,0.00019506,2]
[365454329,1749679859352,-490.0,0.00019506,2]
[365454330,1749679859361,-815.86,0.00019506,2]
[365454331,1749679859370,-13196.72,0.00019506,2]
[365454332,1749679859379,-490.0,0.00019506,2]
[365454333,1749679859389,-490.0,0.00019506,2]
[365454334,1749679859398,-490.0,0.00019506,2]
[365454335,1749679859408,-490.0,0.00019506,2]
[365454336,1749679859418,-490.0,0.00019506,2]
[365454337,1749679859429,-490.0,0.00019506,2]
[365454338,1749679859439,-490.0,0.00019506,2]
[365454339,1749679859448,-490.0,0.00019506,2]
[365454340,1749679859457,-3931.42,0.00019506,2]
[365454341,1749679859467,-685.75,0.00019506,2]
[365454342,1749679859476,-2871.61,0.00019506,2]
[365454343,1749679859486,-1646.33,0.00019506,2]
[365454344,1749679859495,-490.0,0.00019506,2]
[365454345,1749679859505,-1693.91,0.00019506,2]
[365454346,1749679859515,-1390.24,0.00019506,2]
[365454347,1749679859524,-490.0,0.00019506,2]
[365454348,1749679859533,-460.0,0.00019506,2]
[365454349,1749679859544,-490.0,0.00019506,2]
[365454350,1749679859554,-1113.45,0.00019506,2]
[365454351,1749679859563,-490.0,0.00019506,2]
[365454352,1749679859573,-490.0,0.00019506,2]
[365454353,1749679859583,-182.76041961,0.00019506,2]
[365454354,1749679859593,-1988.64,0.00019506,2]
[365454355,1749679859603,-751.67,0.00019506,2]
[365454356,1749679859612,-706.01,0.00019506,2]
[365454357,1749679859622,-490.0,0.00019506,2]
[365454358,1749679859631,-777.83,0.00019506,2]
[365454359,1749679859641,-570.32,0.00019506,2]
[365454360,1749679859650,-1777.15,0.00019506,2]
[365454361,1749679859660,-1103.72,0.00019506,2]
[365454362,1749679859669,-699.37,0.00019506,2]
[365454363,1749679859679,-490.0,0.00019506,2]
[365454364,1749679859688,-2194.8,0.00019506,2]
[365454365,1749679859697,-784.43,0.00019506,2]
[365454366,1749679859706,-490.0,0.00019506,2]
[365454367,1749679859715,-490.0,0.00019506,2]
[365454368,1749679859725,-3072.09,0.00019506,2]
[365454369,1749679859735,-490.0,0.00019506,2]
[365454370,1749679859744,-490.0,0.00019506,2]
[365454371,1749679859753,-298.217313,0.00019506,2]
[365454372,1749679859762,-490.0,0.00019506,2]
[365454373,1749679859771,-1262.02,0.00019506,2]
[365454374,1749679859780,-490.0,0.00019506,2]
[365454375,1749679859789,-490.0,0.00019506,2]
[365454376,1749679859799,-490.0,0.00019506,2]
[365454377,1749679859808,-490.0,0.00019506,2]
[365454378,1749679859817,-490.0,0.00019506,2]
[365454379,1749679859826,-490.0,0.00019506,2]
[365454380,1749679859836,-490.0,0.00019506,2]
[365454381,1749679859845,-490.0,0.00019506,2]
[365454382,1749679859854,-725.32,0.00019506,2]
[365454383,1749679859863,-490.0,0.00019506,2]
[365454384,1749679859873,-490.0,0.00019506,2]
[365454385,1749679859882,-490.0,0.00019506,2]
[365454386,1749679859895,-557.76,0.00019506,2]
[365454387,1749679859905,-490.0,0.00019506,2]
[365454388,1749679859914,-518.6,0.00019506,2]
[365454389,1749679859924,-3082.36,0.00019506,2]
[365454390,1749679859934,-490.0,0.00019506,2]
[365454391,1749679859944,-490.0,0.00019506,2]
[365454392,1749679859954,-490.0,0.00019506,2]
[365454393,1749679859964,-2032.83,0.00019506,2]
[365454394,1749679859975,-1073.45,0.00019506,2]
[365454395,1749679859984,-490.0,0.00019506,2]
[365454396,1749679859993,-490.0,0.00019506,2]
[365454397,1749679860002,-490.0,0.00019506,2]
[365454398,1749679860012,-490.0,0.00019506,2]
[365454399,1749679860022,-480.0,0.00019506,2]
[365454400,1749679860031,-490.0,0.00019506,2]
[365454401,1749679860042,-490.0,0.00019506,2]
[365454402,1749679860052,-490.0,0.00019506,2]
[365454403,1749679860062,-490.0,0.00019506,2]
[365454404,1749679860072,-490.0,0.00019506,2]
[365454405,1749679860081,-490.0,0.00019506,2]
[365454406,1749679860091,-1372.0,0.00019506,2]
[365454407,1749679860100,-490.0,0.00019506,2]
[365454408,1749679860109,-1412.72382,0.00019506,2]
[365454409,1749679860119,-684.94,0.00019506,2]
[365454410,1749679860128,-490.0,0.00019506,2]
[365454411,1749679860137,-572.75,0.00019506,2]
[365454412,1749679860147,-490.0,0.00019506,2]
[365454413,1749679860157,-1136.94,0.00019506,2]
[365454414,1749679860166,-2664.18,0.00019506,2]
[365454415,1749679860178,-490.0,0.00019506,2]
[365454416,1749679860187,-2894.8,0.00019506,2]
[365454417,1749679860196,-490.0,0.00019506,2]
[365454418,1749679860206,-490.0,0.00019506,2]
[365454419,1749679860215,-5875.81,0.00019506,2]
[365454420,1749679860286,-490.0,0.00019506,2]
[365454421,1749679860296,-490.0,0.00019506,2]
[365454422,1749679860305,-706.94,0.00019506,2]
[365454423,1749679860314,-490.0,0.00019506,2]
[365454424,1749679860324,-490.0,0.00019506,2]
[365454425,1749679860333,-3039.18,0.00019506,2]
[365454426,1749679860344,-659.68,0.00019506,2]
[365454427,1749679860353,-3151.88,0.00019506,2]
[365454428,1749679860362,-636.0,0.00019509,2]
[365454429,1749679860371,-802.0,0.00019509,2]
[365454430,1749679860380,-2000.0,0.00019512,2]
[365454431,1749679860389,-1275.0,0.00019512,2]
[365454432,1749679860398,-557.0,0.00019512,2]
[365454433,1749679860407,-926.0,0.00019512,2]
[365454434,1749679860417,-589.0,0.00019512,2]
[365454435,1749679860429,-1255.0,0.00019512,2]
[365454436,1749679860438,-1159.0,0.00019512,2]
[365454437,1749679860447,-759.3087673,0.00019512,2]
[365454438,1749679860457,-200.84703792,0.00019513,2]
[365454439,1749679860466,-561.14303538,0.00019521,2]
[365454440,1749679860476,-5477.36557095,0.00019535,2]
[365454441,1749679860485,-579.98,0.0001954,2]
[365454442,1749679860494,-155.0,0.00019554,2]
[365454443,1749679860503,-883.0,0.00019554,2]
[365454444,1749679860513,-4086.0,0.00019554,2]
[365454445,1749679860522,-7065.0,0.00019554,2]
[365454446,1749679860531,-561.14303538,0.00019555,2]
[365454447,1749679860540,-759.3087673,0.0001956,2]
[365454448,1749679860550,-151.48627974,0.00019562,2]
[365454449,1749679860560,-167.23831366,0.00019562,2]
[365454450,1749679860569,-167.23831367,0.00019562,2]
[365454451,1749679860578,-167.23831367,0.00019562,2]
[365454452,1749679860588,-167.23831367,0.00019562,2]
[365454453,1749679860597,-228.46816994,0.00019571,2]
[365454454,1749679860606,-561.14303538,0.0001959,2]
[365454455,1749679860615,-3328.31053841,0.00019593,2]
[365454456,1749679860625,-969.137924,0.00019599,2]
[365454457,1749679860634,-234.91397695,0.00019601,2]
[365454458,1749679860643,-759.3087673,0.00019609,2]
[365454459,1749679860652,-167.23831367,0.00019616,2]
[365454460,1749679860662,-166.02048437,0.00019616,2]
[365454461,1749679860671,-561.14303538,0.00019624,2]
[365454462,1749679860681,-5477.36557095,0.00019626,2]
[365454463,1749679860691,-1072.71735319,0.00019638,2]
[365454464,1749679860700,-200.84703792,0.00019642,2]
[365454465,1749679860710,-151.48627974,0.00019644,2]
[365454466,1749679860719,-3319.0,0.00019644,2]
[365454467,1749679860728,-1000.0,0.00019652,2]
[365454468,1749679860739,-759.3087673,0.00019657,2]
[365454469,1749679860749,-561.14303538,0.00019659,2]
[365454470,1749679860759,-1000.0,0.00019667,2]
[365454471,1749679860769,-500.0,0.0001967,2]
[365454472,1749679860778,-500.0,0.0001967,2]
[365454473,1749679860788,-3800.07,0.0001967,2]
[365454474,1749679860797,-3800.07,0.0001967,2]
[365454475,1749679860807,-303.84,0.00019671,2]
[365454476,1749679860817,-159819.12271902,0.00019671,2]
[365454477,1749679860827,-151.0,0.00019671,2]
[365454478,1749679860836,-151.0,0.00019671,2]
[365454479,1749679860846,-151.858811,0.00019671,2]
[365454480,1749679860855,-490.0,0.00019671,2]
[365454481,1749679860865,-490.0,0.00019671,2]
[365454482,1749679860875,-450.0,0.00019671,2]
[365454483,1749679860884,-497.1,0.00019671,2]
[365454484,1749679860895,-460.0,0.00019671,2]
[365454485,1749679860905,-490.0,0.00019671,2]
[365454486,1749679860914,-490.0,0.00019671,2]
[365454487,1749679860924,-490.0,0.00019671,2]
[365454488,1749679860934,-490.0,0.00019671,2]
[365454489,1749679860943,-490.0,0.00019671,2]
[365454490,1749679860953,-174.8,0.00019671,2]
[365454491,1749679860964,-490.0,0.00019671,2]
[365454492,1749679860976,-470.0,0.00019671,2]
[365454493,1749679860985,-490.0,0.00019671,2]
[365454494,1749679860994,-490.0,0.00019671,2]
[365454495,1749679861004,-490.0,0.00019671,2]
[365454496,1749679861013,-490.0,0.00019671,2]
[365454497,1749679861022,-611.88,0.00019671,2]
[365454498,1749679861032,-490.0,0.00019671,2]
[365454499,1749679861041,-450.0,0.00019671,2]
[365454500,1749679861051,-460.0,0.00019671,2]
[365454501,1749679861060,-490.0,0.00019671,2]
[365454502,1749679861074,-490.0,0.00019671,2]
[365454503,1749679861085,-490.0,0.00019671,2]
[365454504,1749679861094,-490.0,0.00019671,2]
[365454505,1749679861105,-490.0,0.00019671,2]
[365454506,1749679861114,-490.0,0.00019671,2]
[365454507,1749679861124,-490.0,0.00019671,2]
[365454508,1749679861133,-490.0,0.00019671,2]
[365454509,1749679861142,-470.0,0.00019671,2]
[365454510,1749679861151,-480.0,0.00019671,2]
[365454511,1749679861160,-490.0,0.00019671,2]
[365454512,1749679861170,-490.0,0.00019671,2]
[365454513,1749679861181,-490.0,0.00019671,2]
[365454514,1749679861190,-490.0,0.00019671,2]
[365454515,1749679861199,-490.0,0.00019671,2]
[365454516,1749679861208,-460.4,0.00019671,2]
[365454517,1749679861217,-490.0,0.00019671,2]
[365454518,1749679861227,-480.0,0.00019671,2]
[365454519,1749679861236,-490.0,0.00019671,2]
[365454520,1749679861245,-490.0,0.00019671,2]
[365454521,1749679861254,-490.0,0.00019671,2]
[365454522,1749679861264,-635.25,0.00019671,2]
[365454523,1749679861273,-490.0,0.00019671,2]
[365454524,1749679861282,-576.94,0.00019671,2]
[365454525,1749679861291,-250.0,0.00019671,2]
[365454526,1749679861301,-586.23,0.00019671,2]
[365454527,1749679861310,-490.0,0.00019671,2]
[365454528,1749679861320,-499.09,0.00019671,2]
[365454529,1749679861330,-494.26,0.00019671,2]
[365454530,1749679861339,-490.0,0.00019671,2]
[365454531,1749679861348,-490.0,0.00019671,2]
[365454532,1749679861356,-490.0,0.00019671,2]
[365454533,1749679861366,-490.0,0.00019671,2]
[365454534,1749679861375,-857.86,0.00019671,2]
[365454535,1749679861384,-490.0,0.00019671,2]
[365454536,1749679861393,-1030.53,0.00019671,2]
[365454537,1749679861403,-490.0,0.00019671,2]
[365454538,1749679861412,-490.0,0.00019671,2]
[365454539,1749679861421,-430.0,0.00019671,2]
[365454540,1749679861432,-490.0,0.00019671,2]
[365454541,1749679861441,-490.0,0.00019671,2]
[365454542,1749679861451,-544.79,0.00019671,2]
[365454543,1749679861460,-490.0,0.00019671,2]
[365454544,1749679861469,-460.0,0.00019671,2]
[365454545,1749679861479,-470.0,0.00019671,2]
[365454546,1749679861488,-796.27,0.00019671,2]
[365454547,1749679861498,-490.0,0.00019671,2]
[365454548,1749679861507,-490.0,0.00019671,2]
[365454549,1749679861517,-490.0,0.00019671,2]
[365454550,1749679861526,-490.0,0.00019671,2]
[365454551,1749679861536,-490.0,0.00019671,2]
[365454552,1749679861545,-490.0,0.00019671,2]
[365454553,1749679861555,-1147.4,0.00019671,2]
[365454554,1749679861564,-569.34,0.00019671,2]
[365454555,1749679861574,-490.0,0.00019671,2]
[365454556,1749679861583,-490.0,0.00019671,2]
[365454557,1749679861593,-490.0,0.00019671,2]
[365454558,1749679861602,-490.0,0.00019671,2]
[365454559,1749679861611,-490.0,0.00019671,2]
[365454560,1749679861622,-490.0,0.00019671,2]
[365454561,1749679861632,-490.0,0.00019671,2]
[365454562,1749679861641,-490.0,0.00019671,2]
[365454563,1749679861655,-490.0,0.00019671,2]
[365454564,1749679861665,-490.0,0.00019671,2]
[365454565,1749679861675,-821.38,0.00019671,2]
[365454566,1749679861685,-526.94884364,0.00019671,2]
[365454567,1749679861695,-490.0,0.00019671,2]
[365454568,1749679861704,-490.0,0.00019671,2]
[365454569,1749679861714,-490.0,0.00019671,2]
[365454570,1749679861723,-490.0,0.00019671,2]
[365454571,1749679861733,-490.0,0.00019671,2]
[365454572,1749679861742,-490.0,0.00019671,2]
[365454573,1749679861752,-490.0,0.00019671,2]
[365454574,1749679861761,-490.0,0.00019671,2]
[365454575,1749679861770,-490.0,0.00019671,2]